bitfinex/quotes_BTCUSD_20241116
["timestamp","ask_amount","ask_price","bid_price","bid_amount"]
[1731718754494,0.109928,90969.0,90960.0,0.000857]
[1731718754495,0.109929,90968.0,90962.0,0.109935]
[1731718754740,0.10906255,90970.0,90960.0,0.000857]
[1731718754984,0.10906255,90969.0,90961.0,0.219874]
[1731718755240,0.10906255,90969.0,90960.0,0.000857]
[1731718755241,0.109937,90961.0,90960.0,0.000857]
[1731718755461,0.22385414,90961.0,90960.0,0.000857]
[1731718757808,0.29985414,90961.0,90960.0,0.000857]
[1731718758059,0.34855414,90961.0,90960.0,0.000857]
[1731718760480,0.22385414,90961.0,90960.0,0.000857]
[1731718762468,0.21899955,90961.0,90960.0,0.000857]
[1731718763363,0.076,90970.0,90960.0,0.0042907]
[1731718763588,0.00485459,90965.0,90962.0,0.109935]
[1731718763799,0.10906255,90964.0,90963.0,0.1133667]
[1731718764599,0.10906255,90964.0,90963.0,0.0034337]
[1731718764836,0.219841,90975.0,90965.0,0.109931]
[1731718764837,0.11478059,90970.0,90965.0,0.109931]
[1731718765036,0.11478059,90970.0,90966.0,0.0034337]
[1731718765037,0.11391714,90969.0,90966.0,0.0034337]
[1731718765432,0.11391714,90969.0,90967.0,0.0034337]
[1731718765678,0.11391714,90969.0,90968.0,0.0034337]
[1731718765913,0.22384414,90969.0,90968.0,0.0034337]
[1731718767313,0.22384414,90969.0,90964.0,0.109933]
[1731718767516,0.22384414,90969.0,90965.0,0.00343346]
[1731718767726,0.22384414,90969.0,90966.0,0.00343346]
[1731718767902,0.11391714,90969.0,90967.0,0.00343346]
[1731718768103,0.11391714,90969.0,90968.0,0.00343346]
[1731718769555,0.11391714,90969.0,90968.0,0.11336146]
[1731718769556,0.10906255,90969.0,90968.0,0.11336146]
[1731718769993,0.10906255,90969.0,90968.0,0.11336133]
[1731718770801,0.38423198,90982.0,90968.0,0.11336133]
[1731718770802,0.16440698,90981.0,90979.0,0.109915]
[1731718771163,0.10906255,90980.0,90979.0,0.109915]
[1731718773276,0.00485459,90988.0,90973.0,0.219844]
[1731718773277,0.00485459,90988.0,90975.0,0.04469616]
[1731718773474,0.00485459,90989.0,90988.0,0.109904]
[1731718774480,0.27430498,90993.0,90988.0,0.109904]
[1731718774710,0.10906255,90992.0,90988.0,0.109904]
[1731718774920,0.10906255,90992.0,90991.0,0.1099]
[1731718775135,0.10906255,90992.0,90982.0,0.219822]
[1731718775136,0.08645459,90995.0,90994.0,0.109897]
[1731718775345,0.19551714,90995.0,90994.0,0.1133295]
[1731718775545,0.19551714,90995.0,90994.0,0.0034325]
[1731718776086,0.19551714,90995.0,90994.0,0.1133295]
[1731718777178,0.19551714,90995.0,90994.0,0.109897]
[1731718777405,0.19551714,90995.0,90994.0,0.11332951]
[1731718778437,0.19551714,90995.0,90994.0,0.00343251]
[1731718778668,0.45526998,90995.0,90994.0,0.00343251]
[1731718778869,0.219799,90992.0,90976.0,0.219837]
[1731718779062,0.10906255,90991.0,90981.0,0.109912]
[1731718779284,0.10906255,90991.0,90982.0,0.00343273]
[1731718779508,0.10906255,90991.0,90983.0,0.00343273]
[1731718779509,0.109904,90988.0,90983.0,0.00343273]
[1731718779729,0.109907,90986.0,90984.0,0.00343273]
[1731718779945,0.10906255,90985.0,90981.0,0.109912]
[1731718780167,0.10906255,90985.0,90982.0,0.00343279]
[1731718780392,0.10906255,90985.0,90983.0,0.00343279]
[1731718780609,0.00485459,90992.0,90987.0,0.109904]
[1731718780822,0.27346953,90991.0,90988.0,0.11333679]
[1731718781032,0.10906255,90991.0,90989.0,0.00343279]
[1731718781277,0.10906255,90991.0,90990.0,0.00343279]
[1731718782492,0.21896255,90991.0,90990.0,0.00343279]
[1731718783985,0.30541714,90991.0,90990.0,0.00343279]
[1731718786019,0.109907,90986.0,90981.0,0.109912]
[1731718786232,0.10906255,90985.0,90982.0,0.00343268]
[1731718786492,0.10906255,90985.0,90983.0,0.00343268]
[1731718786718,0.10906255,90985.0,90984.0,0.00343268]
[1731718787239,0.0816,90991.0,90990.0,0.109902]
[1731718787441,0.10906255,90991.0,90990.0,0.11333468]
[1731718788297,0.191793,90998.0,90990.0,0.11333468]
[1731718788298,0.00485459,90995.0,90990.0,0.00343268]
[1731718788505,0.10906255,90994.0,90991.0,0.00343268]
[1731718788737,0.10906255,90994.0,90984.0,0.0793]
[1731718788738,0.10906255,90994.0,90993.0,0.109898]
[1731718788939,0.10906255,90994.0,90993.0,0.11333068]
[1731718791233,0.10906255,90994.0,90993.0,0.11113212]
[1731718791455,0.10906255,90994.0,90993.0,0.11113181]
[1731718791671,0.00485459,90998.0,90997.0,0.109893]
[1731718791877,0.11391714,90998.0,90997.0,0.11332537]
[1731718792087,0.10906255,90998.0,90997.0,0.11332537]
[1731718793413,0.11391714,90998.0,90997.0,0.11332537]
[1731718793623,0.10906255,90998.0,90997.0,0.11332537]
[1731718794501,0.10906255,90998.0,90997.0,0.109893]
[1731718794725,0.10906255,90998.0,90997.0,0.11332507]
[1731718795365,0.11391714,90998.0,90997.0,0.00343207]
[1731718795575,0.11391714,90998.0,90997.0,0.11332507]
[1731718798125,0.10906255,90998.0,90997.0,0.11332507]
[1731718798334,0.09865596,91008.0,90998.0,0.109892]
[1731718798544,0.11077655,90999.0,90998.0,0.109892]
[1731718798757,0.11077655,90999.0,90998.0,0.12948248]
[1731718799229,0.001714,90999.0,90998.0,0.12948248]
[1731718799448,0.001714,90999.0,90998.0,0.109892]
[1731718799679,0.00485459,91003.0,91002.0,0.109887]
[1731718799910,0.00485459,91003.0,91002.0,0.1294788]
[1731718799911,0.11391714,91003.0,91002.0,0.1294788]
[1731718800874,0.10906255,91003.0,91002.0,0.1294788]
[1731718801095,0.11391714,91003.0,91002.0,0.1294788]
[1731718801330,0.11391714,91003.0,91002.0,0.0195918]
[1731718801565,0.22380314,91003.0,91002.0,0.01410105]
[1731718801771,0.35540314,91003.0,91002.0,0.01410105]
[1731718802610,0.35540314,91003.0,91002.0,0.00343201]
[1731718803488,0.35540314,91003.0,91002.0,0.01409429]
[1731718804674,0.35540314,91003.0,91002.0,0.00343201]
[1731718805573,0.10906255,91003.0,91002.0,0.11331901]
[1731718806027,0.10906255,91003.0,91002.0,0.00343201]
[1731718806780,0.10906255,91003.0,91002.0,0.01409458]
[1731718807002,0.10906255,91003.0,91002.0,0.12398158]
[1731718807227,0.10906255,91003.0,91002.0,0.01409458]
[1731718807448,0.22380314,91003.0,91002.0,0.01409458]
[1731718807683,0.29990314,91003.0,91002.0,0.01409458]
[1731718807896,0.34740314,91003.0,91002.0,0.01409458]
[1731718808135,0.37040314,91003.0,91002.0,0.01409458]
[1731718808362,0.37711614,91003.0,91002.0,0.01409458]
[1731718808588,0.23923014,91003.0,91002.0,0.00343201]
[1731718808813,0.30161614,91003.0,91002.0,0.00343201]
[1731718811531,0.10989,91000.0,90999.0,0.0008565]
[1731718811761,0.21895255,91000.0,90999.0,0.0008565]
[1731718811984,0.21895255,91000.0,90999.0,0.00428882]
[1731718813082,0.22380714,91000.0,90999.0,0.00428882]
[1731718814600,0.22380714,91000.0,90999.0,0.0008565]
[1731718814814,0.22380714,91000.0,90999.0,0.00428889]
[1731718815016,0.22380714,91000.0,90984.0,0.09833122]
[1731718815017,0.00485459,90987.0,90983.0,0.20338661]
[1731718815233,0.10906255,90986.0,90979.0,0.14749683]
[1731718815474,0.10906255,90986.0,90981.0,0.109912]
[1731718815475,0.00485459,90982.0,90981.0,0.109912]
[1731718815707,0.11391714,90982.0,90981.0,0.109912]
[1731718818485,0.11391714,90982.0,90980.0,0.109913]
[1731718818704,0.11391714,90982.0,90975.0,0.46196424]
[1731718818705,0.00485459,90977.0,90971.0,0.14749683]
[1731718818913,0.10906255,90976.0,90971.0,0.109924]
[1731718819121,0.10906255,90976.0,90973.0,0.109922]
[1731718819328,0.00485459,90970.0,90969.0,0.14749683]
[1731718819751,0.00485459,90970.0,90968.0,0.0008565]
[1731718819752,0.11478159,90969.0,90968.0,0.0008565]
[1731718819962,0.22384414,90969.0,90968.0,0.0008565]
[1731718823208,0.11391714,90969.0,90956.0,0.36115225]
[1731718823461,0.11391714,90969.0,90956.0,0.2133109]
[1731718823462,0.109934,90964.0,90956.0,0.2133109]
[1731718823677,0.10906255,90963.0,90958.0,0.10994]
[1731718824309,0.10906255,90963.0,90957.0,0.219884]
[1731718824517,0.10906255,90963.0,90958.0,0.10994]
[1731718824961,0.10906255,90963.0,90957.0,0.219884]
[1731718825164,0.10906255,90963.0,90959.0,0.099939]
[1731718825600,0.219853,90970.0,90955.0,0.19331199]
[1731718825601,0.0475,90978.0,90963.0,0.109934]
[1731718825820,0.10906255,90973.0,90962.0,0.14985684]
[1731718826078,0.00485459,90976.0,90975.0,0.10992]
[1731718826282,0.11391714,90976.0,90975.0,0.10992]
[1731718827222,0.11391714,90976.0,90975.0,0.11335295]
[1731718827675,0.11391714,90976.0,90975.0,0.11335299]
[1731718828344,0.11391714,90976.0,90975.0,0.00343299]
[1731718828635,0.22383614,90976.0,90975.0,0.00343299]
[1731718828823,0.30583614,90976.0,90975.0,0.00343299]
[1731718829710,0.19591714,90976.0,90975.0,0.00343299]
[1731718829937,0.19106255,90976.0,90975.0,0.00343299]
[1731718830141,0.19591714,90976.0,90975.0,0.00343299]
[1731718830352,0.30583614,90976.0,90975.0,0.00343299]
[1731718830581,0.32883614,90976.0,90975.0,0.00343299]
[1731718831452,0.32883614,90976.0,90975.0,0.00428949]
[1731718831871,0.24683614,90976.0,90975.0,0.00428949]
[1731718832101,0.22383614,90976.0,90975.0,0.00428949]
[1731718832987,0.11391714,90976.0,90975.0,0.00428949]
[1731718833237,0.10906255,90976.0,90975.0,0.11420949]
[1731718833458,0.082,90994.0,90975.0,0.11420949]
[1731718833459,0.00485459,90982.0,90981.0,0.109913]
[1731718833673,0.11391714,90982.0,90981.0,0.11334599]
[1731718834337,0.001713,90990.0,90981.0,0.00343299]
[1731718834560,0.00485459,90987.0,90982.0,0.00343299]
[1731718834799,0.00485459,90987.0,90986.0,0.109907]
[1731718835095,0.00485459,90987.0,90986.0,0.11333999]
[1731718835547,0.00485459,90987.0,90986.0,0.11333965]
[1731718835765,0.11391714,90987.0,90986.0,0.11333965]
[1731718835992,0.10906255,90987.0,90986.0,0.11333965]
[1731718836232,0.11391714,90987.0,90986.0,0.00343265]
[1731718836442,0.11391714,90987.0,90986.0,0.11333965]
[1731718837548,0.11391714,90987.0,90986.0,0.00343265]
[1731718837974,0.22365726,90987.0,90986.0,0.00343265]
[1731718838185,0.11375226,90987.0,90986.0,0.00343265]
[1731718838399,0.11375226,90987.0,90983.0,0.219819]
[1731718838638,0.10889767,90987.0,90986.0,0.109907]
[1731718838892,0.001713,90990.0,90989.0,0.109903]
[1731718839108,0.001713,90990.0,90989.0,0.25975984]
[1731718839758,0.001713,90990.0,90989.0,0.26319193]
[1731718841044,0.001713,90990.0,90989.0,0.36159737]
[1731718841261,0.001713,90990.0,90989.0,0.36148213]
[1731718841489,0.001713,90990.0,90989.0,0.26319193]
[1731718841717,0.001713,90990.0,90989.0,0.11333509]
[1731718842878,0.16440698,90996.0,90989.0,0.00343209]
[1731718843087,0.16440698,90996.0,90988.0,0.04444543]
[1731718843088,0.16440698,90996.0,90995.0,0.109896]
[1731718843529,0.00485459,91000.0,90993.0,0.219795]
[1731718843744,0.00485459,91000.0,90999.0,0.109891]
[1731718843959,0.00485459,91000.0,90999.0,0.11881414]
[1731718844650,0.001713,91003.0,91002.0,0.109887]
[1731718844887,0.001713,91003.0,91002.0,0.099887]
[1731718845106,0.001713,91003.0,91002.0,0.11946786]
[1731718846078,0.001713,91003.0,91002.0,0.1039767]
[1731718846958,0.11077555,91003.0,91002.0,0.0140897]
[1731718847149,0.30341614,91003.0,91002.0,0.0140897]
[1731718847818,0.29856155,91003.0,91002.0,0.0140897]
[1731718848279,0.30341614,91003.0,91002.0,0.0140897]
[1731718848507,0.48191614,91003.0,91002.0,0.0140897]
[1731718848724,0.48191614,91003.0,91002.0,0.01065772]
[1731718848932,0.48191614,91003.0,90981.0,0.0008565]
[1731718848933,0.19266559,90982.0,90981.0,0.0008565]
[1731718849167,0.30172814,90982.0,90981.0,0.01494768]
[1731718849389,0.30172814,90982.0,90981.0,0.00428943]
[1731718849610,0.30172814,90982.0,90981.0,0.01494768]
[1731718849843,0.30172814,90982.0,90981.0,0.00428943]
[1731718850070,0.30172814,90982.0,90981.0,0.01494768]
[1731718850588,0.32472814,90982.0,90981.0,0.00428943]
[1731718851010,0.32472814,90982.0,90981.0,0.0008565]
[1731718851011,0.32972814,90982.0,90981.0,0.0008565]
[1731718852342,0.43472814,90982.0,90981.0,0.0008565]
[1731718852558,0.48022814,90982.0,90981.0,0.0008565]
[1731718854399,0.44722814,90982.0,90981.0,0.0008565]
[1731718854611,0.34722814,90982.0,90981.0,0.0008565]
[1731718854843,0.23903074,90982.0,90981.0,0.00428956]
[1731718855053,0.30344174,90982.0,90981.0,0.01494459]
[1731718855765,0.0017136,90982.0,90981.0,0.12485759]
[1731718856005,0.0017136,90982.0,90981.0,0.14739986]
[1731718856246,0.0017136,90982.0,90981.0,0.13035034]
[1731718856487,0.0017136,90982.0,90981.0,0.14754527]
[1731718857153,0.0017136,90982.0,90981.0,0.11984072]
[1731718857363,0.0017136,90982.0,90981.0,0.14740207]
[1731718857595,0.0017136,90982.0,90981.0,0.03748907]
[1731718857824,0.0017136,90982.0,90981.0,0.0204383]
[1731718858046,0.0017136,90982.0,90981.0,0.01494555]
[1731718858601,0.22554174,90982.0,90981.0,0.01494555]
[1731718859518,0.22554174,90982.0,90981.0,0.00494555]
[1731718860169,0.11477359,90976.0,90975.0,0.0008565]
[1731718860400,0.22383614,90976.0,90975.0,0.0008565]
[1731718860632,0.25183614,90976.0,90975.0,0.0008565]
[1731718860865,0.24683614,90976.0,90975.0,0.0008565]
[1731718861092,0.25183614,90976.0,90975.0,0.0008565]
[1731718861309,0.43473614,90976.0,90975.0,0.0008565]
[1731718862012,0.48023614,90976.0,90975.0,0.0008565]
[1731718862480,0.00485459,90947.0,90946.0,0.01425682]
[1731718862709,0.11391714,90947.0,90943.0,0.109958]
[1731718862942,0.10906255,90946.0,90943.0,0.109958]
[1731718863164,0.00485459,90947.0,90944.0,0.109957]
[1731718863390,0.10906255,90946.0,90941.0,0.219922]
[1731718863586,0.00485459,90947.0,90945.0,0.109956]
[1731718863842,0.10906255,90946.0,90945.0,0.109956]
[1731718865810,0.10906255,90946.0,90937.0,0.219932]
[1731718865811,0.109957,90945.0,90940.0,0.109961]
[1731718866056,0.109957,90945.0,90937.0,0.219932]
[1731718866057,0.11391714,90945.0,90941.0,0.10996]
[1731718866271,0.11391714,90945.0,90943.0,0.109958]
[1731718867179,0.11391714,90944.0,90937.0,0.219932]
[1731718867619,0.11391714,90944.0,90930.0,0.2208059]
[1731718867620,0.11481259,90943.0,90930.0,0.2208059]
[1731718867833,0.22387514,90943.0,90932.0,0.109971]
[1731718868032,0.22387514,90943.0,90930.0,0.2208059]
[1731718868033,0.22387514,90943.0,90933.0,0.10997]
[1731718868241,0.22387514,90943.0,90934.0,0.109968]
[1731718868682,0.22387514,90943.0,90930.0,0.2208059]
[1731718868896,0.22387514,90943.0,90933.0,0.10997]
[1731718869324,0.22387514,90943.0,90934.0,0.109969]
[1731718870060,0.10906255,90943.0,90942.0,0.1108169]
[1731718871428,0.10906255,90943.0,90942.0,0.1248918]
[1731718872565,0.10906255,90943.0,90942.0,0.13168958]
[1731718872781,0.10906255,90943.0,90942.0,0.10402028]
[1731718873014,0.00485459,90947.0,90942.0,0.01407645]
[1731718873253,0.00485459,90947.0,90946.0,0.109955]
[1731718873479,0.05067851,90966.0,90946.0,0.109955]
[1731718873480,0.00485459,90962.0,90960.0,0.109938]
[1731718873993,0.6198,90975.0,90963.0,0.219867]
[1731718873994,0.72972,90975.0,90963.0,0.219867]
[1731718874223,0.16926157,90971.0,90964.0,0.01407496]
[1731718874450,0.00485459,90965.0,90964.0,0.1205744]
[1731718874675,0.00485459,90971.0,90968.0,0.109928]
[1731718874898,0.00485459,90971.0,90969.0,0.12400439]
[1731718875131,0.00485459,90971.0,90970.0,0.01407739]
[1731718875337,0.11477959,90971.0,90970.0,0.01064399]
[1731718875563,0.109929,90968.0,90963.0,0.01703953]
[1731718875790,0.109929,90968.0,90964.0,0.01408281]
[1731718875971,0.109929,90968.0,90965.0,0.0034335]
[1731718876196,0.219855,90969.0,90966.0,0.01408281]
[1731718876412,0.24684614,90967.0,90966.0,0.01408281]
[1731718876619,0.00485459,90962.0,90960.0,0.00343371]
[1731718876828,0.21899955,90961.0,90960.0,0.00343371]
[1731718877055,0.21899955,90961.0,90960.0,0.01409064]
[1731718877264,0.21899955,90961.0,90960.0,0.00343371]
[1731718877699,0.21899955,90961.0,90960.0,0.01752457]
[1731718877702,0.21899955,90961.0,90960.0,0.01409067]
[1731718877906,0.21899955,90961.0,90960.0,0.01752457]
[1731718878119,0.21899955,90961.0,90960.0,0.01409067]
[1731718878348,0.22385414,90961.0,90960.0,0.01409067]
[1731718878570,0.22385414,90961.0,90960.0,0.01752463]
[1731718879017,0.22385414,90961.0,90960.0,0.01409092]
[1731718879378,0.22385414,90961.0,90960.0,0.01065696]
[1731718879578,0.25185414,90961.0,90960.0,0.01409095]
[1731718879785,0.24199955,90961.0,90960.0,0.01065696]
[1731718880011,0.24199955,90961.0,90960.0,0.01409089]
[1731718880012,0.24685414,90961.0,90960.0,0.01409089]
[1731718880660,0.24685414,90961.0,90960.0,0.01409082]
[1731718882926,0.22385414,90961.0,90960.0,0.01409082]
[1731718883363,0.10906255,90961.0,90960.0,0.03114313]
[1731718883575,0.10906255,90961.0,90960.0,0.14108113]
[1731718883779,0.10906255,90961.0,90960.0,0.14657531]
[1731718884034,0.10906255,90961.0,90960.0,0.11886604]
[1731718884257,0.11391714,90961.0,90960.0,0.03662001]
[1731718884496,0.11391714,90961.0,90960.0,0.03112583]
[1731718884711,0.16940698,90973.0,90960.0,0.03112583]
[1731718884712,0.00485459,90964.0,90960.0,0.03112583]
[1731718884924,0.10906255,90963.0,90962.0,0.329805]
[1731718885134,0.300441,90975.0,90962.0,0.329805]
[1731718885135,0.0806,90975.0,90962.0,0.03662001]
[1731718885379,0.00485459,90969.0,90963.0,0.03112583]
[1731718885624,0.16440698,90972.0,90960.0,0.219875]
[1731718885625,0.10906255,90968.0,90967.0,0.109929]
[1731718885850,0.10906255,90968.0,90967.0,0.14105483]
[1731718886060,0.10906255,90968.0,90967.0,0.14654901]
[1731718886522,0.0017136,90982.0,90975.0,0.10992]
[1731718886744,0.11077675,90976.0,90975.0,0.14654001]
[1731718887400,0.11077675,90976.0,90975.0,0.11884804]
[1731718887621,0.0017142,90976.0,90975.0,0.1465793]
[1731718888520,0.0017142,90976.0,90975.0,0.13765126]
[1731718888765,0.0017142,90976.0,90975.0,0.14657613]
[1731718891782,0.0017142,90976.0,90975.0,0.10992]
[1731718892003,0.0017142,90976.0,90975.0,0.14654365]
[1731718893126,0.0017142,90976.0,90975.0,0.14105144]
[1731718894439,0.0017142,90976.0,90975.0,0.11335263]
[1731718894676,0.0017142,90976.0,90975.0,0.14103545]
[1731718895574,0.11563134,90976.0,90975.0,0.0481551]
[1731718895822,0.11563134,90976.0,90975.0,0.03111545]
[1731718897379,0.22555034,90976.0,90975.0,0.03111545]
[1731718897803,0.11563134,90976.0,90975.0,0.03111218]
[1731718899313,0.22555034,90976.0,90975.0,0.0106454]
[1731718899519,0.22555034,90976.0,90975.0,0.03111239]
[1731718899722,0.22555034,90976.0,90975.0,0.03112919]
[1731718899937,0.11563134,90976.0,90975.0,0.01408503]
[1731718900363,0.11563134,90976.0,90975.0,0.03112919]
[1731718900593,0.11077675,90976.0,90975.0,0.14104919]
[1731718901019,0.0017142,90976.0,90975.0,0.14104919]
[1731718901233,0.0017142,90976.0,90975.0,0.14654164]
[1731718901457,0.0017142,90976.0,90975.0,0.14653884]
[1731718901700,0.0017136,90982.0,90981.0,0.109913]
[1731718901925,0.0017136,90982.0,90981.0,0.14653184]
[1731718905468,0.0017136,90982.0,90981.0,0.13760697]
[1731718905688,0.0017136,90982.0,90981.0,0.14653072]
[1731718907436,0.0017136,90982.0,90981.0,0.05365734]
[1731718907632,0.0017136,90982.0,90981.0,0.14653072]
[1731718908502,0.0017136,90982.0,90981.0,0.14653191]
[1731718911778,0.0017136,90982.0,90981.0,0.16357153]
[1731718911994,0.0017136,90982.0,90981.0,0.16362821]
[1731718912265,0.0017136,90982.0,90981.0,0.03665013]
[1731718912682,0.0017136,90982.0,90981.0,0.0537235]
[1731718912908,0.0017136,90982.0,90981.0,0.14656313]
[1731718915316,0.0017136,90982.0,90981.0,0.109913]
[1731718915525,0.0017136,90982.0,90981.0,0.14659898]
[1731718915732,0.0017136,90982.0,90981.0,0.14659895]
[1731718916654,0.16440698,90992.0,90981.0,0.03668595]
[1731718916824,0.16440698,90992.0,90991.0,0.01709586]
[1731718917032,0.16440698,90992.0,90991.0,0.03668595]
[1731718917284,0.109896,90995.0,90991.0,0.03668595]
[1731718917471,0.10906255,90994.0,90992.0,0.03668595]
[1731718917632,0.10906255,90994.0,90993.0,0.03668595]
[1731718918238,0.10906255,90994.0,90993.0,0.03616321]
[1731718918854,0.10906255,90994.0,90993.0,0.01708961]
[1731718919122,0.10906255,90994.0,90993.0,0.0260139]
[1731718919123,0.22381414,90994.0,90993.0,0.0260139]
[1731718920217,0.00485459,90997.0,90993.0,0.04737723]
[1731718920440,0.00485459,90997.0,90994.0,0.04737723]
[1731718920441,0.109896,90995.0,90994.0,0.04737723]
[1731718920652,0.21895855,90995.0,90994.0,0.04737723]
[1731718920889,0.22381314,90995.0,90994.0,0.04737723]
[1731718921299,0.27021314,90995.0,90994.0,0.06446882]
[1731718921498,0.27021314,90995.0,90994.0,0.04737723]
[1731718922141,0.27021314,90995.0,90994.0,0.0260139]
[1731718922455,0.27021314,90995.0,90994.0,0.00343242]
[1731718922456,0.38201314,90995.0,90994.0,0.00343242]
[1731718923069,0.38201314,90995.0,90976.0,0.0008568]
[1731718923070,0.0788,90979.0,90976.0,0.0008568]
[1731718923259,0.109917,90977.0,90976.0,0.0008568]
[1731718923518,0.109917,90977.0,90976.0,0.02687175]
[1731718923519,0.104917,90977.0,90976.0,0.02687175]
[1731718924385,0.104917,90977.0,90976.0,0.01794569]
[1731718924612,0.104917,90977.0,90976.0,0.02137878]
[1731718924825,0.104917,90977.0,90976.0,0.02137882]
[1731718925735,0.21397955,90977.0,90976.0,0.02137882]
[1731718926613,0.28733414,90977.0,90976.0,0.02137882]
[1731718927292,0.28733414,90977.0,90976.0,0.00428993]
[1731718927523,0.28733414,90977.0,90976.0,0.0008568]
[1731718927969,0.33296954,90977.0,90976.0,0.0008568]
[1731718930159,0.33296954,90977.0,90976.0,0.01152439]
[1731718930379,0.33296954,90977.0,90976.0,0.0008568]
[1731718931019,0.21397955,90977.0,90976.0,0.0008568]
[1731718931233,0.11391714,90977.0,90976.0,0.0115222]
[1731718931451,0.11391714,90977.0,90976.0,0.12487459]
[1731718931665,0.11391714,90977.0,90976.0,0.14743398]
[1731718931666,0.10906255,90977.0,90976.0,0.14743398]
[1731718931875,0.11391714,90977.0,90976.0,0.03751498]
[1731718932101,0.22383414,90977.0,90976.0,0.03751498]
[1731718933399,0.22383414,90977.0,90976.0,0.03202134]
[1731718933837,0.38023414,90977.0,90976.0,0.01495538]
[1731718934055,0.38023414,90977.0,90976.0,0.0008568]
[1731718936478,0.37037955,90977.0,90976.0,0.0008568]
[1731718936703,0.21897955,90977.0,90976.0,0.01151906]
[1731718936932,0.22383414,90977.0,90976.0,0.01495228]
[1731718937169,0.22383414,90977.0,90976.0,0.14193167]
[1731718937170,0.10906255,90977.0,90976.0,0.14193167]
[1731718937382,0.10906255,90977.0,90976.0,0.03750655]
[1731718937611,0.10906255,90977.0,90976.0,0.14742555]
[1731718938766,0.10906255,90977.0,90976.0,0.14742402]
[1731718940311,0.10906255,90977.0,90976.0,0.1419312]
[1731718940932,0.0017136,90982.0,90981.0,0.109913]
[1731718941141,0.11077615,90982.0,90981.0,0.1410684]
[1731718941349,0.11077615,90982.0,90981.0,0.14656095]
[1731718941980,0.11077615,90982.0,90981.0,0.03664795]
[1731718942191,0.11077615,90982.0,90981.0,0.0311554]
[1731718942641,0.22068715,90982.0,90981.0,0.0311554]
[1731718943114,0.11563074,90982.0,90981.0,0.0311554]
[1731718943336,0.0017136,90982.0,90981.0,0.1410684]
[1731718944204,0.0017136,90982.0,90981.0,0.1460684]
[1731718944421,0.0017136,90982.0,90981.0,0.1410684]
[1731718944644,0.0017136,90982.0,90981.0,0.12900801]
[1731718945699,0.0017136,90982.0,90981.0,0.35945342]
[1731718945919,0.16440698,91004.0,90993.0,0.34534341]
[1731718946127,0.16440698,91004.0,90993.0,0.50961897]
[1731718946342,0.16440698,91004.0,90993.0,0.51510941]
[1731718946561,0.16440698,91004.0,91003.0,0.109886]
[1731718946772,0.16440698,91004.0,91003.0,0.14650143]
[1731718947023,0.00485459,91015.0,91014.0,0.109873]
[1731718947239,0.10906255,91015.0,91014.0,0.1239598]
[1731718947450,0.10906255,91015.0,91014.0,0.14099799]
[1731718947871,0.10906255,91015.0,91014.0,0.13756498]
[1731718948079,0.10906255,91015.0,91014.0,0.14099658]
[1731718948326,0.11391714,91015.0,91014.0,0.14099658]
[1731718948551,0.11391714,91015.0,91014.0,0.03112358]
[1731718948763,0.11391714,91015.0,91014.0,0.01408539]
[1731718948974,0.11391714,91015.0,91014.0,0.12395839]
[1731718949199,0.11391714,91015.0,91014.0,0.01408539]
[1731718949407,0.11391714,91015.0,91014.0,0.01063553]
[1731718949612,0.11391714,91015.0,91014.0,0.01406713]
[1731718950517,0.11391714,91015.0,91014.0,0.12394013]
[1731718950728,0.0017136,91022.0,91021.0,0.109864]
[1731718951207,0.00890314,91022.0,91021.0,0.1132954]
[1731718952127,0.0017136,91022.0,91021.0,0.1132954]
[1731718952815,0.0017136,91022.0,91021.0,0.26005276]
[1731718953025,0.0017136,91022.0,91021.0,0.26348367]
[1731718954391,0.0017136,91022.0,91021.0,0.36862908]
[1731718954606,0.0017136,91022.0,91021.0,0.4835337]
[1731718954901,0.0017136,91022.0,91021.0,0.33334494]
[1731718955342,0.0017136,91022.0,91021.0,0.38050235]
[1731718956229,0.0017136,91022.0,91021.0,0.34874032]
[1731718958375,0.0017136,91022.0,91021.0,0.34530941]
[1731718958617,0.0017136,91022.0,91021.0,0.38808125]
[1731718959705,0.0017136,91022.0,91021.0,0.3846507]
[1731718959926,0.0017136,91022.0,91021.0,0.38808119]
[1731718960775,0.0017136,91022.0,91021.0,0.3846507]
[1731718960989,0.0017136,91022.0,91021.0,0.4000811]
[1731718961435,0.0017152,91025.0,91024.0,0.21700641]
[1731718961662,0.0017152,91025.0,91024.0,0.40981436]
[1731718961869,0.0017152,91025.0,91024.0,0.46403251]
[1731718962387,0.0017152,91025.0,91024.0,0.23537072]
[1731718962549,0.0017152,91025.0,91024.0,0.38555948]
[1731718962759,0.0017152,91025.0,91024.0,0.37920701]
[1731718963412,0.0017152,91025.0,91024.0,0.36519517]
[1731718963637,0.0017152,91025.0,91024.0,0.37920582]
[1731718965328,0.0017152,91025.0,91024.0,0.38920582]
[1731718966248,0.0017152,91025.0,91024.0,0.38906041]
[1731718966892,0.0017152,91025.0,91024.0,0.38564222]
[1731718967109,0.0017152,91025.0,91024.0,0.38578763]
[1731718967320,0.0017152,91025.0,91024.0,0.42915935]
[1731718967754,0.0017152,91025.0,91024.0,0.43415935]
[1731718968637,0.0017152,91025.0,91024.0,0.42415935]
[1731718969937,0.0017152,91025.0,91024.0,0.41356714]
[1731718970208,0.0017152,91025.0,91024.0,0.36348019]
[1731718970440,0.0017152,91025.0,91024.0,0.21329143]
[1731718970872,0.0017152,91025.0,91024.0,0.21829143]
[1731718971932,0.0017152,91025.0,91024.0,0.49176096]
[1731718972142,0.04486973,91055.0,91034.0,0.21499441]
[1731718972143,0.16440698,91050.0,91034.0,0.21499441]
[1731718972353,0.16440698,91050.0,91034.0,0.4999136]
[1731718972592,0.16440698,91050.0,91034.0,0.49648317]
[1731718973693,0.16440698,91050.0,91034.0,0.53255279]
[1731718974187,0.16440698,91050.0,91034.0,0.72849961]
[1731718974406,0.16440698,91050.0,91034.0,0.53455279]
[1731718974633,0.16440698,91050.0,91034.0,0.7309031]
[1731718975061,0.16440698,91050.0,91034.0,0.68498893]
[1731718975288,0.16440698,91050.0,91034.0,0.68298893]
[1731718975499,0.16440698,91050.0,91034.0,0.90072738]
[1731718975722,0.16440698,91050.0,91049.0,0.11497541]
[1731718975960,0.16440698,91050.0,91049.0,0.36516417]
[1731718975961,0.17181196,91050.0,91049.0,0.36516417]
[1731718976191,0.00740498,91050.0,91049.0,0.36516417]
[1731718976399,0.0017144,91060.0,91059.0,0.109818]
[1731718976644,0.0017144,91060.0,91059.0,0.26000676]
[1731718977092,0.0017144,91060.0,91059.0,0.36515217]
[1731718977326,0.0017144,91060.0,91059.0,0.6112546]
[1731718977780,0.0017144,91060.0,91059.0,0.21496341]
[1731718978279,0.0017144,91060.0,91059.0,0.41164843]
[1731718978525,0.0017144,91060.0,91059.0,0.21496341]
[1731718978972,0.0017144,91060.0,91059.0,0.25886995]
[1731718979236,0.0017144,91060.0,91059.0,0.25372454]
[1731718979456,0.0017144,91060.0,91059.0,0.209818]
[1731718979695,0.0017144,91060.0,91059.0,0.109818]